fUST/lending_fUST_20250222
["ID","MTS","AMOUNT","RATE_DAILY","PERIOD"]
[354083858,1740228642094,-500.0,0.00013945,2]
[354083859,1740228642103,-500.0,0.00013945,2]
[354083860,1740228642113,-1356.73,0.00013945,2]
[354083861,1740228642122,-500.0,0.00013945,2]
[354083862,1740228642132,-6601.57,0.00013945,2]
[354083863,1740228642141,-500.0,0.00013945,2]
[354083864,1740228642150,-500.0,0.00013945,2]
[354083865,1740228642159,-500.0,0.00013945,2]
[354083866,1740228642169,-502.6808592,0.00013945,2]
[354083867,1740228642178,-500.0,0.00013945,2]
[354083868,1740228642187,-500.0,0.00013945,2]
[354083869,1740228642196,-500.0,0.00013945,2]
[354083870,1740228642206,-500.0,0.00013945,2]
[354083871,1740228642217,-175.26659172,0.00013945,2]
[354083872,1740228642229,-577.97,0.00013945,2]
[354083873,1740228642237,-500.0,0.00013945,2]
[354083874,1740228642246,-500.0,0.00013945,2]
[354083875,1740228642256,-500.0,0.00013945,2]
[354083876,1740228642265,-500.0,0.00013945,2]
[354083877,1740228642275,-500.0,0.00013945,2]
[354083878,1740228642284,-1271.06,0.00013945,2]
[354083879,1740228642294,-500.0,0.00013945,2]
[354083880,1740228642304,-500.0,0.00013945,2]
[354083881,1740228642313,-500.0,0.00013945,2]
[354083882,1740228642323,-2564.27,0.00013945,2]
[354083883,1740228642332,-500.0,0.00013945,2]
[354083884,1740228642342,-500.0,0.00013945,2]
[354083885,1740228642351,-500.0,0.00013945,2]
[354083886,1740228642361,-500.0,0.00013945,2]
[354083887,1740228642371,-500.0,0.00013945,2]
[354083888,1740228642380,-500.0,0.00013945,2]
[354083889,1740228642389,-88.10260557,0.00013945,2]
[354083897,1740228642602,-500.0,0.00013698,2]
[354083899,1740228642612,-500.0,0.00013698,2]
[354083901,1740228642621,-500.0,0.0001378,2]
[354083903,1740228642631,-500.0,0.0001378,2]
[354083906,1740228642641,-500.0,0.00013863,2]
[354083908,1740228642651,-187.28406276,0.00013886,2]
[354083909,1740228642660,-411.89739443,0.00013945,2]
[354083911,1740228642669,-1381.17,0.00013945,2]
[354083912,1740228642679,-500.0,0.00013945,2]
[354083913,1740228642688,-500.0,0.00013945,2]
[354083915,1740228642697,-500.0,0.00013945,2]
[354083917,1740228642706,-500.0,0.00013945,2]
[354083920,1740228642716,-506.24,0.00013945,2]
[354083921,1740228642725,-500.0,0.00013945,2]
[354083922,1740228642736,-500.0,0.00013945,2]
[354083923,1740228642746,-500.0,0.00013945,2]
[354083924,1740228642755,-500.0,0.00013945,2]
[354083926,1740228642765,-500.0,0.00013945,2]
[354083928,1740228642774,-509.91,0.00013945,2]
[354083930,1740228642784,-500.0,0.00013945,2]
[354083932,1740228642793,-348.23925961,0.00013945,2]
[354083934,1740228642802,-500.0,0.00013945,2]
[354083936,1740228642812,-500.0,0.00013945,2]
[354083937,1740228642821,-500.0,0.00013945,2]
[354083938,1740228642830,-1713.37,0.00013945,2]
[354083940,1740228642841,-500.0,0.00013945,2]
[354083942,1740228642850,-500.0,0.00013945,2]
[354083943,1740228642860,-500.0,0.00013945,2]
[354083945,1740228642869,-500.0,0.00013945,2]
[354083947,1740228642879,-500.0,0.00013945,2]
[354083949,1740228642888,-500.0,0.00013945,2]
[354083951,1740228642898,-500.0,0.00013945,2]
[354083953,1740228642907,-500.0,0.00013945,2]
[354083954,1740228642918,-500.0,0.00013945,2]
[354083956,1740228642928,-500.0,0.00013945,2]
[354083958,1740228642937,-346.28681065,0.00013945,2]
[354083960,1740228642950,-205.08826546,0.00013945,2]
[354083962,1740228642959,-500.0,0.00013945,2]
[354083964,1740228642968,-140.94173454,0.00013945,2]
[354083966,1740228642979,-293.33861973,0.00013945,2]
[354083968,1740228642990,-65.71964573,0.00013945,2]
[354083970,1740228642999,-1359.32,0.00013945,2]
[354083972,1740228643008,-500.0,0.00013945,2]
[354083974,1740228643018,-500.0,0.00013945,2]
[354083976,1740228643027,-500.0,0.00013945,2]
[354083978,1740228643037,-1195.38,0.00013945,2]
[354083980,1740228643046,-500.0,0.00013945,2]
[354083982,1740228643055,-500.0,0.00013945,2]
[354083984,1740228643064,-630.06893338,0.00013945,2]
[354083986,1740228643073,-6782.71,0.00013945,2]
[354083988,1740228643082,-419.31,0.00013945,2]
[354083990,1740228643092,-500.0,0.00013945,2]
[354083992,1740228643101,-500.0,0.00014027,2]
[354083994,1740228643111,-500.0,0.00014027,2]
[354083996,1740228643120,-500.0,0.00014027,2]
[354084006,1740228643195,-500.0,0.00014027,2]
[354084008,1740228643205,-500.0,0.00014027,2]
[354084010,1740228643214,-500.0,0.00014027,2]
[354084012,1740228643228,-500.0,0.00014027,2]
[354084014,1740228643237,-500.0,0.00014027,2]
[354084016,1740228643247,-230.16063405,0.00014027,2]
[354084018,1740228643257,-121.28534429,0.00014027,2]
[354084021,1740228643269,-378.71465571,0.00014027,2]
[354084022,1740228643278,-500.0,0.00014027,2]
[354084025,1740228643287,-271.88777742,0.00014027,2]
[354084027,1740228643300,-228.11222258,0.00014027,2]
[354084029,1740228643309,-500.0,0.00014027,2]
[354084031,1740228643319,-500.0,0.00014027,2]
[354084033,1740228643328,-371.01913193,0.00014027,2]
[354084035,1740228643339,-128.98086807,0.00014027,2]
[354084037,1740228643349,-500.0,0.00014027,2]
[354084039,1740228643358,-500.0,0.00014027,2]
[354084041,1740228643368,-500.0,0.00014027,2]
[354084043,1740228643378,-533.09,0.00014027,2]
[354084045,1740228643388,-500.0,0.00014027,2]
[354084047,1740228643397,-500.0,0.00014027,2]
[354084049,1740228643407,-417.65660772,0.00014027,2]
[354084051,1740228643418,-82.34339228,0.00014027,2]
[354084054,1740228643428,-453.43137216,0.00014027,2]
[354084056,1740228643439,-46.56862784,0.00014027,2]
[354084058,1740228643449,-500.0,0.00014027,2]
[354084060,1740228643459,-500.0,0.00014027,2]
[354084062,1740228643468,-500.0,0.00014027,2]
[354084064,1740228643478,-500.0,0.00014027,2]
[354084066,1740228643487,-605.89293468,0.00014027,2]
[354084068,1740228643498,-5232.97940765,0.00014027,2]
[354084071,1740228643510,-12291.29765767,0.00014027,2]
[354084073,1740228643519,-500.0,0.00014027,2]
[354084075,1740228643528,-500.0,0.00014027,2]
[354084077,1740228643538,-517.49,0.00014027,2]
[354084079,1740228643547,-1888.85039061,0.00014027,2]
[354084094,1740228643678,-1161.04325639,0.00014027,2]
[354084096,1740228643690,-639.316353,0.00014027,2]
[354084098,1740228643699,-500.0,0.00014027,2]
[354084100,1740228643708,-235.60789684,0.00014027,2]
[354084103,1740228643719,-499.58105022,0.00014027,2]
[354084105,1740228643730,-530.66105294,0.00014027,2]
[354084107,1740228643740,-500.0,0.00014027,2]
[354084109,1740228643749,-139.51539636,0.00014027,2]
[354084111,1740228643760,-360.48460364,0.00014027,2]
[354084113,1740228643769,-752.14347431,0.00014027,2]
[354084115,1740228643780,-604.58652569,0.00014027,2]
[354084118,1740228643790,-58.29652037,0.00014027,2]
[354084120,1740228643801,-441.70347963,0.00014027,2]
[354084122,1740228643810,-6601.57,0.00014027,2]
[354084124,1740228643821,-500.0,0.00014027,2]
[354084126,1740228643830,-500.0,0.00014027,2]
[354084128,1740228643839,-500.0,0.00014027,2]
[354084130,1740228643848,-500.0,0.00014027,2]
[354084132,1740228643858,-500.0,0.00014027,2]
[354084134,1740228643868,-577.97,0.00014027,2]
[354084136,1740228643878,-500.0,0.00014027,2]
[354084138,1740228643887,-500.0,0.00014027,2]
[354084140,1740228643897,-500.0,0.00014027,2]
[354084142,1740228643906,-500.0,0.00014027,2]
[354084144,1740228643916,-1271.06,0.00014027,2]
[354084146,1740228643925,-500.0,0.00014027,2]
[354084148,1740228643935,-500.0,0.00014027,2]
[354084151,1740228643945,-2564.27,0.00014027,2]
[354084153,1740228643954,-357.63547253,0.00014027,2]
[354084155,1740228643964,-500.0,0.00014027,2]
[354084156,1740228643973,-311.7,0.00014027,2]
[354084159,1740228643983,-1381.17,0.00014027,2]
[354084161,1740228643992,-500.0,0.00014027,2]
[354084163,1740228644001,-500.0,0.00014027,2]
[354084165,1740228644010,-588.76,0.00014027,2]
[354084167,1740228644019,-506.24,0.00014027,2]
[354084169,1740228644029,-500.0,0.00014027,2]
[354084171,1740228644038,-500.0,0.00014027,2]
[354084173,1740228644047,-500.0,0.00014027,2]
[354084175,1740228644056,-168.81152194,0.00014027,2]
[354084177,1740228644067,-509.91,0.00014027,2]
[354084179,1740228644076,-500.0,0.00014027,2]
[354084181,1740228644086,-500.0,0.00014027,2]
[354084183,1740228644096,-500.0,0.00014027,2]
[354084185,1740228644105,-1713.37,0.00014027,2]
[354084187,1740228644114,-500.0,0.00014027,2]
[354084189,1740228644124,-500.0,0.00014027,2]
[354084191,1740228644133,-500.0,0.00014027,2]
[354084193,1740228644142,-500.0,0.00014027,2]
[354084195,1740228644152,-27.80834966,0.00014027,2]
[354084197,1740228644165,-472.19165034,0.00014027,2]
[354084199,1740228644174,-40.18266655,0.00014027,2]
[354084202,1740228644186,-459.81733345,0.00014027,2]
[354084204,1740228644195,-500.0,0.00014027,2]
[354084206,1740228644204,-500.0,0.00014027,2]
[354084208,1740228644216,-565.90291453,0.00014027,2]
[354084210,1740228644228,-507.0895533,0.00014027,2]
[354084212,1740228644237,-500.0,0.00014027,2]
[354084214,1740228644246,-500.0,0.00014027,2]
[354084216,1740228644256,-1359.32,0.00014027,2]
[354084218,1740228644266,-500.0,0.00014027,2]
[354084220,1740228644275,-500.0,0.00014027,2]
[354084222,1740228644284,-500.0,0.00014027,2]
[354084224,1740228644294,-1195.38,0.00014027,2]
[354084226,1740228644303,-500.0,0.00014027,2]
[354084228,1740228644312,-500.0,0.00014027,2]
[354084230,1740228644323,-6782.71,0.00014027,2]
[354084232,1740228644332,-501.28,0.00014027,2]
[354084234,1740228644342,-187.28406276,0.00014029,2]
[354084236,1740228644351,-500.0,0.00014109,2]
[354084238,1740228644360,-500.0,0.00014109,2]
[354084240,1740228644369,-500.0,0.00014109,2]
[354084242,1740228644379,-299.25,0.00014109,2]
[354084244,1740228644388,-500.0,0.00014109,2]
[354084246,1740228644397,-500.0,0.00014109,2]
[354084255,1740228644469,-500.0,0.00014109,2]
[354084257,1740228644478,-500.0,0.00014109,2]
[354084259,1740228644487,-500.0,0.00014109,2]
[354084261,1740228644496,-500.0,0.00014109,2]
[354084263,1740228644506,-500.0,0.00014109,2]
[354084265,1740228644514,-500.0,0.00014109,2]
[354084267,1740228644524,-500.0,0.00014109,2]
[354084269,1740228644533,-500.0,0.00014109,2]
[354084271,1740228644542,-500.0,0.00014109,2]
[354084273,1740228644552,-500.0,0.00014109,2]
[354084275,1740228644562,-500.0,0.00014109,2]
[354084277,1740228644572,-500.0,0.00014109,2]
[354084279,1740228644582,-500.0,0.00014109,2]
[354084281,1740228644591,-500.0,0.00014109,2]
[354084283,1740228644600,-500.0,0.00014109,2]
[354084285,1740228644609,-500.0,0.00014109,2]
[354084287,1740228644619,-500.0,0.00014109,2]
[354084289,1740228644629,-517.49,0.00014109,2]
[354084291,1740228644639,-3689.21,0.00014109,2]
[354084293,1740228644648,-500.0,0.00014109,2]
[354084295,1740228644658,-1265.85,0.00014109,2]
[354084298,1740228644668,-500.0,0.00014109,2]
[354084299,1740228644677,-500.0,0.00014109,2]
[354084302,1740228644686,-1356.73,0.00014109,2]
[354084304,1740228644696,-500.0,0.00014109,2]
[354084306,1740228644705,-6601.57,0.00014109,2]
[354084307,1740228644714,-500.0,0.00014109,2]
[354084309,1740228644724,-500.0,0.00014109,2]
[354084312,1740228644736,-500.0,0.00014109,2]
[354084313,1740228644745,-500.0,0.00014109,2]
[354084316,1740228644755,-577.97,0.00014109,2]
[354084318,1740228644764,-500.0,0.00014109,2]
[354084320,1740228644774,-500.0,0.00014109,2]
[354084322,1740228644783,-500.0,0.00014109,2]
[354084324,1740228644792,-500.0,0.00014109,2]
[354084326,1740228644801,-1271.06,0.00014109,2]
[354084328,1740228644810,-500.0,0.00014109,2]
[354084330,1740228644820,-364.39935078,0.00014109,2]
[354084332,1740228644829,-2564.27,0.00014109,2]
[354084334,1740228644838,-500.0,0.00014109,2]
[354084336,1740228644847,-1381.17,0.00014109,2]
[354084338,1740228644857,-500.0,0.00014109,2]
[354084340,1740228644866,-506.24,0.00014109,2]
[354084342,1740228644876,-500.0,0.00014109,2]
[354084344,1740228644885,-500.0,0.00014109,2]
[354084346,1740228644894,-500.0,0.00014109,2]
[354084348,1740228644903,-509.91,0.00014109,2]
[354084350,1740228644912,-500.0,0.00014109,2]
[354084352,1740228644922,-500.0,0.00014109,2]
[354084354,1740228644931,-500.0,0.00014109,2]
[354084356,1740228644940,-1713.37,0.00014109,2]
[354084358,1740228644949,-500.0,0.00014109,2]
[354084360,1740228644958,-500.0,0.00014109,2]
[354084362,1740228644968,-500.0,0.00014109,2]
[354084364,1740228644977,-500.0,0.00014109,2]
[354084366,1740228644986,-500.0,0.00014109,2]
[354084368,1740228644995,-500.0,0.00014109,2]
[354084370,1740228645004,-500.0,0.00014109,2]
[354084372,1740228645014,-500.0,0.00014109,2]
[354084374,1740228645023,-500.0,0.00014109,2]
[354084376,1740228645033,-500.0,0.00014109,2]
[354084378,1740228645043,-1359.32,0.00014109,2]
[354084380,1740228645052,-500.0,0.00014109,2]
[354084382,1740228645062,-500.0,0.00014109,2]
[354084384,1740228645072,-500.0,0.00014109,2]
[354084386,1740228645082,-1195.38,0.00014109,2]
[354084388,1740228645091,-500.0,0.00014109,2]
[354084390,1740228645100,-500.0,0.00014109,2]
[354084392,1740228645109,-6782.71,0.00014109,2]
[354084394,1740228645118,-187.28406276,0.00014173,2]
[354084396,1740228645127,-500.0,0.00014191,2]
[354084398,1740228645136,-500.0,0.00014191,2]
[354084400,1740228645145,-625.09,0.00014191,2]
[354084402,1740228645154,-500.0,0.00014191,2]
[354084404,1740228645164,-500.0,0.00014191,2]
[354084406,1740228645173,-500.0,0.00014191,2]
[354084408,1740228645183,-500.0,0.00014191,2]
[354084410,1740228645192,-500.0,0.00014191,2]
[354084412,1740228645202,-500.0,0.00014191,2]
[354084414,1740228645211,-500.0,0.00014191,2]
[354084416,1740228645224,-500.0,0.00014191,2]
[354084419,1740228645233,-500.0,0.00014191,2]
[354084421,1740228645242,-500.0,0.00014191,2]
[354084423,1740228645252,-500.0,0.00014191,2]
[354084424,1740228645263,-176.15205692,0.00014191,2]
[354084427,1740228645272,-500.0,0.00014191,2]
[354084428,1740228645281,-500.0,0.00014191,2]
[354084430,1740228645290,-500.0,0.00014191,2]
[354084432,1740228645305,-500.0,0.00014191,2]
[354084434,1740228645315,-500.0,0.00014191,2]
[354084436,1740228645324,-500.0,0.00014191,2]
[354084439,1740228645334,-517.49,0.00014191,2]
[354084441,1740228645344,-3689.21,0.00014191,2]
[354084443,1740228645354,-500.0,0.00014191,2]
[354084445,1740228645363,-1265.85,0.00014191,2]
[354084447,1740228645373,-500.0,0.00014191,2]
[354084449,1740228645382,-500.0,0.00014191,2]
[354084451,1740228645391,-1356.73,0.00014191,2]
[354084453,1740228645401,-500.0,0.00014191,2]
[354084455,1740228645410,-6601.57,0.00014191,2]
[354084457,1740228645420,-251.52342615,0.00014191,2]
[354084459,1740228645428,-500.0,0.00014191,2]
[354084461,1740228645438,-500.0,0.00014191,2]
[354084463,1740228645447,-500.0,0.00014191,2]
[354084465,1740228645457,-577.97,0.00014191,2]
[354084467,1740228645466,-500.0,0.00014191,2]
[354084470,1740228645475,-500.0,0.00014191,2]
[354084472,1740228645484,-500.0,0.00014191,2]
[354084474,1740228645494,-500.0,0.00014191,2]
[354084476,1740228645503,-1271.06,0.00014191,2]
[354084478,1740228645512,-500.0,0.00014191,2]
[354084480,1740228645521,-2564.27,0.00014191,2]
[354084482,1740228645530,-1381.17,0.00014191,2]
[354084485,1740228645539,-500.0,0.00014191,2]
[354084488,1740228645548,-506.24,0.00014191,2]
[354084491,1740228645558,-500.0,0.00014191,2]
[354084493,1740228645568,-500.0,0.00014191,2]
[354084495,1740228645577,-422.97034166,0.00014191,2]
[354084503,1740228645644,-509.91,0.00014191,2]
[354084505,1740228645653,-500.0,0.00014191,2]
[354084507,1740228645663,-500.0,0.00014191,2]
[354084509,1740228645672,-500.0,0.00014191,2]
[354084511,1740228645683,-1713.37,0.00014191,2]
[354084513,1740228645692,-500.0,0.00014191,2]
[354084514,1740228645701,-500.0,0.00014191,2]
[354084515,1740228645711,-500.0,0.00014191,2]
[354084516,1740228645720,-500.0,0.00014191,2]
[354084517,1740228645729,-500.0,0.00014191,2]
[354084518,1740228645739,-500.0,0.00014191,2]
[354084519,1740228645748,-500.0,0.00014191,2]
[354084520,1740228645757,-500.0,0.00014191,2]
[354084521,1740228645766,-500.0,0.00014191,2]
[354084522,1740228645776,-1359.32,0.00014191,2]
[354084523,1740228645785,-500.0,0.00014191,2]
[354084524,1740228645794,-500.0,0.00014191,2]
[354084525,1740228645804,-500.0,0.00014191,2]
[354084526,1740228645813,-1195.38,0.00014191,2]
[354084527,1740228645822,-500.0,0.00014191,2]
[354084528,1740228645831,-500.0,0.00014191,2]
[354084530,1740228645840,-6782.71,0.00014191,2]
[354084531,1740228645849,-447.16,0.00014273,2]
[354084533,1740228645858,-500.0,0.00014273,2]
[354084535,1740228645868,-500.0,0.00014273,2]
[354084537,1740228645878,-500.0,0.00014273,2]
[354084539,1740228645887,-500.0,0.00014273,2]
[354084541,1740228645896,-500.0,0.00014273,2]
[354084543,1740228645906,-500.0,0.00014273,2]
[354084545,1740228645915,-500.0,0.00014273,2]
[354084547,1740228645925,-500.0,0.00014273,2]
[354084549,1740228645934,-500.0,0.00014273,2]
[354084551,1740228645943,-500.0,0.00014273,2]
[354084553,1740228645952,-500.0,0.00014273,2]
[354084555,1740228645962,-500.0,0.00014273,2]
[354084557,1740228645972,-517.49,0.00014273,2]
[354084559,1740228645982,-3689.21,0.00014273,2]
[354084561,1740228645992,-500.0,0.00014273,2]
[354084563,1740228646002,-1265.85,0.00014273,2]
[354084565,1740228646011,-500.0,0.00014273,2]
[354084567,1740228646020,-500.0,0.00014273,2]
[354084569,1740228646029,-1356.73,0.00014273,2]
[354084571,1740228646038,-500.0,0.00014273,2]
[354084573,1740228646048,-6601.57,0.00014273,2]
[354084576,1740228646058,-500.0,0.00014273,2]
[354084578,1740228646069,-500.0,0.00014273,2]
[354084580,1740228646079,-500.0,0.00014273,2]
[354084582,1740228646088,-577.97,0.00014273,2]
[354084584,1740228646098,-500.0,0.00014273,2]
[354084587,1740228646107,-500.0,0.00014273,2]
[354084589,1740228646117,-500.0,0.00014273,2]
[354084591,1740228646127,-500.0,0.00014273,2]
[354084593,1740228646136,-1271.06,0.00014273,2]
[354084595,1740228646146,-500.0,0.00014273,2]
[354084597,1740228646155,-2564.27,0.00014273,2]
[354084599,1740228646164,-1381.17,0.00014273,2]
[354084601,1740228646173,-230.97,0.00014273,2]
[354084603,1740228646183,-506.24,0.00014273,2]
[354084605,1740228646192,-500.32,0.00014273,2]
[354084607,1740228646201,-500.0,0.00014273,2]
[354084609,1740228646211,-509.91,0.00014273,2]
[354084611,1740228646223,-500.0,0.00014273,2]
[354084613,1740228646232,-500.0,0.00014273,2]
[354084615,1740228646241,-500.0,0.00014273,2]
[354084617,1740228646250,-1713.37,0.00014273,2]
[354084619,1740228646259,-500.0,0.00014273,2]
[354084621,1740228646268,-500.0,0.00014273,2]
[354084623,1740228646277,-500.0,0.00014273,2]
[354084625,1740228646286,-500.0,0.00014273,2]
[354084627,1740228646297,-500.0,0.00014273,2]
[354084629,1740228646306,-500.0,0.00014273,2]
[354084631,1740228646316,-500.0,0.00014273,2]
[354084633,1740228646325,-500.0,0.00014273,2]
[354084635,1740228646334,-500.0,0.00014273,2]
[354084637,1740228646343,-1359.32,0.00014273,2]
[354084639,1740228646352,-500.0,0.00014273,2]
[354084641,1740228646361,-500.0,0.00014273,2]
[354084643,1740228646371,-620.56,0.00014273,2]
[354084645,1740228646380,-1195.38,0.00014273,2]
[354084647,1740228646389,-340.39583103,0.00014273,2]
[354084649,1740228646398,-500.0,0.00014273,2]
[354084651,1740228646408,-6782.71,0.00014273,2]
[354084653,1740228646417,-500.0,0.00014321,2]
[354084655,1740228646426,-1000.0,0.00014321,2]
[354084657,1740228646435,-1000.0,0.00014321,2]
[354084659,1740228646444,-288.78610561,0.00014321,2]
[354084661,1740228646452,-500.0,0.00014356,2]
[354084663,1740228646461,-500.0,0.00014356,2]
[354084665,1740228646471,-500.0,0.00014356,2]
[354084667,1740228646481,-500.0,0.00014356,2]
[354084669,1740228646490,-592.8,0.00014356,2]
[354084671,1740228646499,-500.0,0.00014356,2]
[354084674,1740228646509,-500.0,0.00014356,2]
[354084676,1740228646518,-269.68,0.00014356,2]
[354084678,1740228646528,-517.49,0.00014356,2]
[354084680,1740228646537,-3689.21,0.00014356,2]
[354084682,1740228646547,-500.0,0.00014356,2]
[354084684,1740228646556,-1265.85,0.00014356,2]
[354084686,1740228646565,-500.0,0.00014356,2]
[354084688,1740228646574,-500.0,0.00014356,2]
[354084690,1740228646584,-1356.73,0.00014356,2]
[354084692,1740228646593,-500.0,0.00014356,2]
[354084694,1740228646602,-6601.57,0.00014356,2]
[354084696,1740228646611,-500.0,0.00014356,2]
[354084698,1740228646620,-577.97,0.00014356,2]
[354084700,1740228646637,-500.0,0.00014356,2]
[354084702,1740228646646,-500.0,0.00014356,2]
[354084704,1740228646655,-500.0,0.00014356,2]
[354084706,1740228646664,-1271.06,0.00014356,2]
[354084714,1740228646725,-500.0,0.00014356,2]
[354084716,1740228646740,-2564.27,0.00014356,2]
[354084718,1740228646749,-1381.17,0.00014356,2]
[354084720,1740228646758,-506.24,0.00014356,2]
[354084722,1740228646767,-500.0,0.00014356,2]
[354084724,1740228646777,-509.91,0.00014356,2]
[354084726,1740228646787,-500.0,0.00014356,2]
[354084728,1740228646796,-1713.37,0.00014356,2]
[354084730,1740228646805,-500.0,0.00014356,2]
[354084733,1740228646815,-500.0,0.00014356,2]
[354084735,1740228646824,-500.0,0.00014356,2]
[354084737,1740228646833,-500.0,0.00014356,2]
[354084739,1740228646842,-500.0,0.00014356,2]
[354084741,1740228646851,-500.0,0.00014356,2]
[354084743,1740228646860,-500.0,0.00014356,2]
[354084745,1740228646870,-1359.32,0.00014356,2]
[354084747,1740228646879,-500.0,0.00014356,2]
[354084749,1740228646888,-1195.38,0.00014356,2]
[354084751,1740228646898,-500.0,0.00014356,2]
[354084753,1740228646907,-6782.71,0.00014356,2]
[354084755,1740228646916,-151.0,0.000144,2]
[354084757,1740228646925,-500.0,0.00014438,2]
[354084759,1740228646935,-500.0,0.00014438,2]
[354084761,1740228646944,-500.0,0.00014438,2]
[354084763,1740228646960,-500.0,0.00014438,2]
[354084765,1740228646976,-563.28,0.00014438,2]
[354084766,1740228646985,-500.0,0.00014438,2]
[354084768,1740228646995,-517.49,0.00014438,2]
[354084771,1740228647004,-3689.21,0.00014438,2]
[354084773,1740228647013,-500.0,0.00014438,2]
[354084775,1740228647023,-1265.85,0.00014438,2]
[354084776,1740228647032,-500.0,0.00014438,2]
[354084779,1740228647042,-500.0,0.00014438,2]
[354084780,1740228647051,-1356.73,0.00014438,2]
[354084783,1740228647061,-500.0,0.00014438,2]
[354084785,1740228647073,-6601.57,0.00014438,2]
[354084786,1740228647083,-500.0,0.00014438,2]
[354084788,1740228647092,-577.97,0.00014438,2]
[354084791,1740228647102,-500.0,0.00014438,2]
[354084793,1740228647111,-500.0,0.00014438,2]
[354084795,1740228647121,-500.0,0.00014438,2]
[354084797,1740228647130,-1271.06,0.00014438,2]
[354084799,1740228647139,-500.0,0.00014438,2]
[354084801,1740228647149,-2564.27,0.00014438,2]
[354084803,1740228647159,-1381.17,0.00014438,2]
[354084805,1740228647168,-506.24,0.00014438,2]
[354084807,1740228647177,-500.0,0.00014438,2]
[354084809,1740228647187,-509.91,0.00014438,2]
[354084811,1740228647197,-500.0,0.00014438,2]
[354084813,1740228647206,-1713.37,0.00014438,2]
[354084815,1740228647215,-590.04,0.00014438,2]
[354084817,1740228647229,-418.48,0.00014438,2]
[354084819,1740228647238,-500.0,0.00014438,2]
[354084821,1740228647249,-500.0,0.00014438,2]
[354084823,1740228647259,-1359.32,0.00014438,2]
[354084825,1740228647268,-500.0,0.00014438,2]
[354084827,1740228647277,-1195.38,0.00014438,2]
[354084829,1740228647286,-500.0,0.00014438,2]
[354084831,1740228647296,-6782.71,0.00014438,2]
[354084833,1740228647306,-151.0,0.000145,2]
[354084835,1740228647315,-500.0,0.0001452,2]
[354084837,1740228647324,-500.0,0.0001452,2]
[354084839,1740228647334,-500.0,0.0001452,2]
[354084841,1740228647343,-500.0,0.0001452,2]
[354084843,1740228647354,-517.49,0.0001452,2]
[354084845,1740228647363,-3689.21,0.0001452,2]
[354084847,1740228647373,-500.0,0.0001452,2]
[354084849,1740228647382,-1265.85,0.0001452,2]
[354084851,1740228647393,-500.0,0.0001452,2]
[354084853,1740228647403,-500.0,0.0001452,2]
[354084855,1740228647415,-1356.73,0.0001452,2]
[354084857,1740228647424,-500.0,0.0001452,2]
[354084859,1740228647433,-6601.57,0.0001452,2]
[354084861,1740228647442,-571.2,0.0001452,2]
[354084863,1740228647452,-577.97,0.0001452,2]